bitfinex-derivatives/quotes_ETHF0:USTF0_20250309
["timestamp","ask_amount","ask_price","bid_price","bid_amount"]
[1741506856561,3.75734,2184.0,2183.5,1.22246986]
[1741506856562,0.54965,2183.6,2183.5,1.22246986]
[1741506857151,0.54965,2183.6,2183.5,0.61336986]
[1741506857358,0.54965,2183.6,2183.5,0.00686986]
[1741506857962,0.54965,2183.6,2183.5,0.61946986]
[1741506858757,0.54965,2183.6,2183.5,0.00686986]
[1741506859160,0.5973,2183.6,2183.2,0.6275]
[1741506859360,0.54975,2183.2,2183.1,20.555]
[1741506867174,1.15085,2183.2,2183.1,20.555]
[1741506867869,0.6011,2183.2,2182.9,0.64706986]
[1741506868170,3.2078,2183.3,2182.9,0.64706986]
[1741506868360,0.54976,2183.2,2183.0,0.54978]
[1741506868564,0.54976,2183.2,2183.1,0.6201]
[1741506868764,0.54976,2183.2,2183.1,1.2702]
[1741506869868,0.54976,2183.2,2183.1,0.6201]
[1741506871273,3.21466986,2183.3,2182.9,0.64706986]
[1741506871472,0.5498,2183.0,2182.9,0.64706986]
[1741506873180,0.5498,2183.0,2182.9,0.00686986]
[1741506881785,3.21466986,2183.3,2182.9,0.00686986]
[1741506882076,0.5498,2183.0,2182.9,0.00686986]
[1741506893994,3.7576,2183.0,2182.9,0.00686986]
[1741506895591,0.54992,2182.5,2182.4,3.8493]
[1741506900989,1.2484,2182.9,2182.4,3.8493]
[1741506901184,0.54991,2182.6,2182.4,3.8493]
[1741506902792,0.54992,2182.5,2182.4,3.8493]
[1741506903999,0.54992,2182.6,2182.4,3.8493]
[1741506904299,0.54992,2182.5,2182.4,3.8493]
[1741506906999,1.2519,2182.9,2182.4,3.8493]
[1741506907188,0.54991,2182.6,2182.4,3.8493]
[1741506907392,0.54992,2182.5,2182.4,3.8493]
[1741506907588,1.2519,2182.9,2182.4,3.8493]
[1741506907797,0.54991,2182.6,2182.4,3.8493]
[1741506908993,0.6287,2182.9,2182.4,3.8493]
[1741506909193,0.54988,2182.7,2182.4,4.39923]
[1741506913801,0.54988,2182.7,2182.5,0.54992]
[1741506914007,0.54988,2182.7,2182.6,1.2827]
[1741506914703,0.54986,2182.8,2182.6,1.2827]
[1741506914900,0.54987,2182.7,2182.6,1.2827]
[1741506920407,5.72891,2183.9,2182.6,3.2417]
[1741506920609,5.09976986,2183.3,2182.6,3.2417]
[1741506920808,0.54984,2182.9,2182.6,3.79159]
[1741506923712,5.09976986,2183.3,2182.6,3.2417]
[1741506924009,0.54982,2182.9,2182.6,3.79158]
[1741506925699,5.09976986,2183.3,2182.6,3.79158]
[1741506925700,0.54985,2182.8,2182.6,3.79158]
[1741506926100,0.54984,2182.9,2182.6,3.79158]
[1741506927114,0.54986,2182.8,2182.6,3.2417]
[1741506928114,0.54986,2182.8,2182.6,3.7916]
[1741506929715,0.54984,2182.9,2182.6,3.7916]
[1741506930617,5.09976986,2183.3,2182.6,3.2417]
[1741506930923,0.54986,2182.8,2182.6,3.2417]
[1741506931218,0.54986,2182.8,2182.6,3.79159]
[1741506931518,0.54984,2182.9,2182.7,0.6159]
[1741506933909,6.47413986,2183.3,2182.7,0.6159]
[1741506934110,0.54985,2182.8,2182.7,0.6159]
[1741506934513,0.54987,2182.7,2182.6,3.2417]
[1741506934817,0.54985,2182.8,2182.6,3.2417]
[1741506935920,0.54985,2182.8,2182.6,3.7916]
[1741506936920,0.54983,2182.9,2182.6,3.7916]
[1741506937619,0.54983,2182.9,2182.6,1.8326]
[1741506937819,5.09976986,2183.3,2182.6,3.2407]
[1741506938022,0.54978,2183.1,2182.8,0.54984]
[1741506938218,0.54978,2183.1,2182.9,1.2428]
[1741506938517,5.09976986,2183.3,2182.9,1.8769]
[1741506938717,0.00686986,2183.3,2183.0,5.1658]
[1741506938922,0.00686986,2183.3,2183.2,0.54975]
[1741506944627,0.00686986,2183.3,2183.1,0.54975]
[1741506944822,0.00686986,2183.3,2183.2,0.54975]
[1741506945019,0.00686986,2183.3,2183.0,3.2078]
[1741506945223,0.54975,2183.2,2183.1,1.958]
[1741506945424,0.54977,2183.1,2183.0,3.2078]
[1741506945822,0.54986,2182.8,2182.7,3.2078]
[1741506946126,0.54986,2182.8,2182.5,3.2135]
[1741506946520,3.2078,2183.0,2182.5,3.2135]
[1741506947123,0.54987,2182.7,2182.5,3.2135]
[1741506947527,3.2078,2183.0,2182.5,3.2135]
[1741506947930,0.54989,2182.7,2182.5,3.2135]
[1741506948533,3.2078,2183.0,2182.5,3.2135]
[1741506948830,0.54989,2182.7,2182.5,3.2135]
[1741506949330,3.2078,2183.0,2182.5,3.2135]
[1741506949526,0.5499,2182.6,2182.5,1.2555]
[1741506949926,3.2078,2183.0,2182.5,1.2555]
[1741506950126,0.54988,2182.7,2182.5,1.2555]
[1741506950432,0.5499,2182.7,2182.5,1.2555]
[1741506952531,3.2078,2183.0,2182.4,5.1658]
[1741506952728,0.54991,2182.6,2182.4,5.71575]
[1741506954833,0.54991,2182.6,2182.4,5.1658]
[1741506955637,0.54992,2182.5,2182.4,5.1658]
[1741506956530,0.54992,2182.5,2182.4,3.2078]
[1741506957234,0.54992,2182.6,2182.4,3.2078]
[1741506958929,0.6233,2182.8,2182.4,3.2078]
[1741506959131,0.54988,2182.7,2182.5,0.6231]
[1741506959330,1.17316,2182.8,2182.5,0.6231]
[1741506959535,0.6233,2182.8,2182.5,0.6231]
[1741506959839,0.54988,2182.7,2182.5,0.6231]
[1741506960038,0.6233,2182.8,2182.5,0.6231]
[1741506960240,0.54989,2182.7,2182.4,3.2078]
[1741506960540,0.6518,2182.7,2182.4,3.2078]
[1741506960743,1.20167,2182.7,2182.4,3.75774]
[1741506962142,1.17315,2182.8,2182.5,0.54991]
[1741506962834,3.2078,2183.0,2182.4,3.2078]
[1741506963034,0.54982,2182.9,2182.7,3.2078]
[1741506963238,0.54981,2183.0,2182.8,1.2853]
[1741506963435,0.5498,2183.0,2182.8,1.2853]
[1741506963835,0.54982,2182.9,2182.8,1.2853]
[1741506964343,1.2195,2183.1,2182.8,1.2853]
[1741506964545,0.5498,2183.0,2182.8,1.2853]
[1741506964736,1.2195,2183.1,2182.8,1.2853]
[1741506964941,0.54982,2182.9,2182.8,1.2853]
[1741506965645,1.2195,2183.1,2182.8,1.2853]
[1741506965946,0.63076986,2183.3,2182.8,1.2853]
[1741506966145,0.5498,2183.0,2182.8,1.2853]
[1741506968647,1.2067,2183.2,2182.8,1.2853]
[1741506968845,0.00686986,2183.3,2183.1,0.54976]
[1741506969141,3.75755,2183.2,2183.1,1.958]
[1741506969343,0.54985,2182.8,2182.7,5.1658]
[1741506969544,0.6051,2183.1,2182.7,3.2078]
[1741506969748,0.54981,2183.0,2182.8,0.6427]
[1741506969940,0.54981,2183.0,2182.8,1.2505]
[1741506970136,0.54981,2183.0,2182.8,1.8633]
[1741506970638,1.15489,2183.1,2182.8,1.8633]
[1741506970838,0.54977,2183.1,2182.8,2.41314]
[1741506971039,0.5498,2183.0,2182.8,1.8633]
[1741506972046,1.2229,2183.2,2182.8,1.8633]
[1741506972047,0.54979,2183.1,2182.8,1.8633]
[1741506973544,1.2229,2183.2,2182.8,1.8633]
[1741506974152,0.54979,2183.1,2182.8,1.8633]
[1741506974353,0.5498,2183.0,2182.8,1.8633]
[1741506974846,1.2229,2183.2,2182.8,1.8633]
[1741506975046,1.2229,2183.2,2182.8,2.41315]
[1741506975047,0.54978,2183.1,2182.8,2.41315]
[1741506975957,0.54975,2183.2,2182.9,0.54982]
[1741506976157,0.54978,2183.1,2182.8,2.41314]
[1741506977251,0.5498,2183.0,2182.8,1.8633]
[1741506979056,0.54978,2183.1,2182.8,2.41314]
[1741506979446,0.54978,2183.1,2182.8,1.8633]
[1741506980955,0.5498,2183.0,2182.8,1.8633]
[1741506981759,0.54979,2183.1,2182.8,2.41314]
[1741506983560,0.00686986,2183.3,2182.8,2.41314]
[1741506983763,0.00686986,2183.3,2183.0,3.2078]
[1741506984056,0.00686986,2183.3,2183.1,2.5938]
[1741506984256,0.00686986,2183.3,2183.2,0.6195]
[1741506984457,0.55659986,2183.3,2183.2,0.6195]
[1741506987657,0.00686986,2183.3,2183.2,0.6195]
[1741506987857,0.55658986,2183.3,2183.2,1.2443]
[1741506988550,0.00686986,2183.3,2183.2,1.79405]
[1741506988754,0.54964,2183.7,2183.3,0.5497]
[1741506988954,0.54964,2183.7,2183.4,3.8132]
[1741506989152,0.54964,2183.7,2183.5,1.963]
[1741506990556,0.00686986,2183.8,2183.5,1.963]
[1741506990757,0.55647986,2183.8,2183.5,2.51267]
[1741506991058,0.55647986,2183.8,2183.5,1.963]
[1741506991457,0.00686986,2183.8,2183.5,1.963]
[1741506991660,0.54962,2183.7,2183.5,1.963]
[1741506991858,0.55647986,2183.8,2183.6,0.6201]
[1741506992064,0.00686986,2183.8,2183.6,1.80913]
[1741506992256,0.00686986,2183.8,2183.7,0.6113]
[1741506992461,0.00686986,2183.8,2183.7,3.8191]
[1741507000066,0.00686986,2183.8,2183.7,4.36872]
[1741507001061,0.00686986,2183.8,2183.7,3.8191]
[1741507002264,0.00686986,2183.8,2183.7,4.36872]
[1741507004564,3.2078,2184.1,2183.9,0.54955]
[1741507004770,3.2078,2184.1,2184.0,1.2398]
[1741507005063,3.2078,2184.1,2184.0,2.39054]
[1741507005568,3.2078,2184.1,2184.0,1.841]
[1741507009973,3.2078,2184.1,2184.0,2.39054]
[1741507010164,3.2078,2184.1,2184.0,1.841]
[1741507010361,3.2078,2184.1,2184.0,2.39054]
[1741507011470,3.2078,2184.1,2184.0,1.841]
[1741507011866,0.54949,2184.2,2184.0,1.841]
[1741507012071,0.55635986,2184.3,2184.0,2.39054]
[1741507012477,0.00686986,2184.3,2184.0,1.841]
[1741507012668,0.5495,2184.2,2184.0,1.841]
[1741507013575,0.55635986,2184.3,2184.0,2.39054]
[1741507015470,0.5495,2184.2,2184.0,1.841]
[1741507015875,1.2545,2184.2,2184.0,1.841]
[1741507016276,1.80401,2184.2,2184.0,1.841]
[1741507016570,1.2545,2184.2,2184.0,1.841]
[1741507016769,1.80401,2184.2,2184.0,1.841]
[1741507016977,0.54952,2184.1,2184.0,1.841]
[1741507017177,1.8909,2184.2,2183.9,3.2078]
[1741507017476,0.54956,2184.0,2183.9,1.957]
[1741507019175,1.8909,2184.2,2183.7,20.556]
[1741507019379,0.54959,2183.8,2183.7,20.556]
[1741507019775,1.79159,2183.8,2183.7,20.556]
[1741507020377,1.242,2183.8,2183.7,20.556]
[1741507020682,1.79159,2183.8,2183.7,20.556]
[1741507023588,1.79159,2183.8,2183.6,1.957]
[1741507025086,1.242,2183.8,2183.6,1.957]
[1741507025391,0.54962,2183.7,2183.6,1.957]
[1741507026085,1.79161,2183.8,2183.6,1.957]
[1741507027087,1.242,2183.8,2183.6,1.957]
[1741507027290,0.54962,2183.7,2183.6,1.957]
[1741507027490,1.242,2183.8,2183.6,1.957]
[1741507027690,1.79161,2183.8,2183.6,1.957]
[1741507027889,0.54962,2183.7,2183.6,1.957]
[1741507028095,1.79161,2183.8,2183.6,1.957]
[1741507031896,1.242,2183.8,2183.7,0.54962]
[1741507032094,3.21466986,2184.3,2183.6,1.957]
[1741507032392,0.54953,2184.1,2183.8,0.54958]
[1741507032603,0.54953,2184.1,2183.9,1.2238]
[1741507032890,0.54953,2184.1,2183.9,1.8552]
[1741507034297,0.00686986,2184.3,2183.9,1.8552]
[1741507034498,0.55634986,2184.3,2184.0,0.54953]
[1741507034801,0.55634986,2184.3,2184.0,2.50653]
[1741507035195,0.00686986,2184.3,2184.2,0.54949]
[1741507035401,0.00686986,2184.3,2184.2,1.19209]
[1741507036293,3.2078,2184.9,2184.5,0.54941]
[1741507036493,3.75714,2184.9,2184.6,1.2931]
[1741507036799,0.54934,2184.8,2184.6,1.2931]
[1741507037300,3.75713,2184.9,2184.6,1.2931]
[1741507037495,3.76399986,2184.9,2184.6,1.2931]
[1741507037698,3.21466986,2184.9,2184.6,1.2931]
[1741507038214,0.54934,2184.8,2184.6,1.2931]
[1741507042703,3.21466986,2184.9,2184.6,1.2931]
[1741507042898,0.54936,2184.8,2184.6,1.2931]
[1741507043199,0.54937,2184.8,2184.6,1.2931]
[1741507043400,3.21466986,2184.9,2184.6,1.2931]
[1741507043602,0.54936,2184.8,2184.6,1.2931]
[1741507043999,3.21466986,2184.9,2184.6,1.2931]
[1741507044502,0.54937,2184.7,2184.6,1.2931]
[1741507046301,0.54939,2184.6,2184.5,0.00686986]
[1741507048900,1.17129,2184.6,2184.5,0.00686986]
[1741507051598,0.54939,2184.6,2184.5,0.00686986]
[1741507051898,1.18459,2184.6,2184.5,0.00686986]
[1741507052105,0.54939,2184.6,2184.5,0.00686986]
[1741507052712,3.82246986,2184.9,2184.5,0.00686986]
[1741507053009,0.54939,2184.7,2184.5,0.00686986]
[1741507053208,3.82246986,2184.9,2184.5,0.00686986]
[1741507053404,0.54939,2184.7,2184.5,0.00686986]
[1741507053715,0.54937,2184.7,2184.5,0.00686986]
[1741507055413,0.54937,2184.7,2184.6,1.956]
[1741507055606,0.54937,2184.7,2184.6,3.1634]
[1741507055913,0.54937,2184.7,2184.6,3.7985]
[1741507056116,0.54936,2184.8,2184.6,3.7985]
[1741507057410,3.76399986,2184.9,2184.6,3.7985]
[1741507057711,0.54936,2184.8,2184.6,3.7985]
[1741507058311,0.55620986,2184.9,2184.6,3.7985]
[1741507058503,0.00686986,2184.9,2184.6,4.34788]
[1741507058708,0.55618986,2184.9,2184.6,4.34788]
[1741507060112,0.00686986,2184.9,2184.6,3.1857]
[1741507060312,0.54937,2184.7,2184.6,3.1857]
[1741507062620,1.80357,2184.8,2184.6,3.1857]
[1741507062823,0.54937,2184.7,2184.6,3.1857]
[1741507065816,0.54937,2184.8,2184.6,3.1857]
[1741507067123,0.00686986,2184.9,2184.6,3.1857]
[1741507067328,0.55618986,2184.9,2184.7,0.6302]
[1741507067526,0.00686986,2184.9,2184.7,0.6302]
[1741507067730,0.54934,2184.8,2184.7,0.6302]
[1741507068427,0.00686986,2184.9,2184.7,0.6302]
[1741507068428,0.55620986,2184.9,2184.7,0.6302]
[1741507068625,0.55619986,2184.9,2184.7,0.6302]
[1741507071139,0.54934,2184.8,2184.7,0.6302]
[1741507073742,0.00686986,2184.9,2184.7,0.6302]
[1741507073940,0.54934,2184.8,2184.7,0.6302]
[1741507074340,0.55620986,2184.9,2184.7,0.6302]
[1741507075942,0.00686986,2184.9,2184.7,0.6302]
[1741507076135,0.55619986,2184.9,2184.7,0.6302]
[1741507077640,0.55619986,2184.9,2184.7,3.838]
[1741507078737,0.54934,2184.8,2184.7,3.838]
[1741507078943,0.55619986,2184.9,2184.7,3.838]
[1741507080840,0.54934,2184.8,2184.7,3.838]
[1741507081041,0.00686986,2184.9,2184.7,3.838]
[1741507081042,0.55619986,2184.9,2184.7,3.838]
[1741507082239,0.00686986,2184.9,2184.7,3.838]
[1741507083047,0.55619986,2184.9,2184.7,3.838]
[1741507090343,0.54934,2184.8,2184.5,20.55386986]
[1741507090544,0.54939,2184.6,2184.5,20.55386986]
[1741507091053,0.54939,2184.6,2184.5,0.00686986]
[1741507096150,3.75719,2184.6,2184.5,0.00686986]
[1741507098351,7.2078,2184.6,2184.1,1.956]
[1741507098552,0.6516,2184.5,2184.0,1.2549]
[1741507098755,0.54952,2184.1,2184.0,1.2549]
[1741507124477,3.2078,2184.6,2184.0,1.2549]
[1741507124672,1.2279,2184.8,2184.1,3.8507]
[1741507124975,3.76399986,2184.9,2184.4,3.2078]
[1741507125172,3.21466986,2184.9,2184.5,3.8177]
[1741507125373,3.76399986,2184.9,2184.5,3.8177]
[1741507125877,3.76399986,2184.9,2184.5,4.36712]
[1741507126476,3.21466986,2184.9,2184.5,4.36712]
[1741507126774,3.76398986,2184.9,2184.5,3.8177]
[1741507128075,3.76398986,2184.9,2184.5,4.36712]
[1741507128472,3.21466986,2184.9,2184.5,4.36712]
[1741507128776,3.21466986,2184.9,2184.5,3.8177]
[1741507129879,3.75698,2185.5,2184.7,3.2078]
[1741507130176,3.8566,2185.5,2185.0,3.2078]
[1741507130371,0.54923,2185.3,2185.0,5.1638]
[1741507130576,0.54923,2185.3,2185.1,0.5974]
[1741507130974,0.54924,2185.2,2185.1,0.5974]
[1741507131378,0.59756986,2185.4,2185.1,0.5974]
[1741507131582,0.54923,2185.3,2185.1,0.5974]
[1741507133172,0.59756986,2185.4,2185.1,0.5974]
[1741507133373,0.54923,2185.3,2185.1,0.5974]
[1741507133977,0.59756986,2185.4,2185.1,0.5974]
[1741507134380,0.54924,2185.2,2185.1,0.5974]
[1741507134986,0.54923,2185.3,2185.1,0.5974]
[1741507135277,0.59756986,2185.4,2185.1,0.5974]
[1741507135582,0.54924,2185.3,2185.1,0.5974]
[1741507135880,0.54924,2185.2,2185.1,0.5974]
[1741507136383,0.54927,2185.1,2185.0,1.96186986]
[1741507139077,0.54926,2185.2,2185.0,1.96186986]
[1741507139578,0.59756986,2185.4,2185.0,1.96186986]
[1741507139784,0.54927,2185.1,2185.0,1.96186986]
[1741507140190,0.54925,2185.2,2185.0,1.96186986]
[1741507140379,0.54927,2185.1,2185.0,1.96186986]
[1741507140586,1.17147,2185.1,2185.0,0.00686986]
[1741507140787,4.37927,2185.1,2185.0,0.00686986]
[1741507161115,1.17147,2185.1,2185.0,0.00686986]
[1741507161316,4.37927,2185.1,2185.0,0.00686986]
[1741507162818,4.37927,2185.1,2185.0,0.64026986]
[1741507166323,3.75707,2185.1,2185.0,0.64026986]
[1741507175329,3.75707,2185.1,2185.0,0.00686986]
[1741507175629,4.38017,2185.1,2185.0,0.00686986]
[1741507177028,7.8309,2185.1,2184.3,20.547]
[1741507177223,0.54942,2184.5,2184.4,0.6511]
[1741507179728,3.2078,2184.7,2184.4,0.6511]
[1741507179927,3.2078,2185.3,2184.5,5.1628]
[1741507180133,0.54928,2185.1,2184.6,0.54938]
[1741507180325,0.54928,2185.1,2184.7,1.2561]
[1741507182227,0.54928,2185.1,2184.7,1.80546]
[1741507182428,0.54925,2185.2,2184.7,1.80546]
[1741507182630,3.8082,2185.3,2184.7,1.2561]
[1741507182828,4.35743,2185.3,2184.8,3.75714]
[1741507183033,0.54924,2185.2,2184.8,4.37654]
[1741507183223,0.54924,2185.2,2184.8,3.8272]
[1741507186236,4.35743,2185.3,2184.8,4.37654]
[1741507186832,0.54925,2185.2,2184.8,3.8272]
[1741507187435,3.8082,2185.3,2184.8,4.37654]
[1741507187637,4.35743,2185.3,2184.8,4.37654]
[1741507187839,3.2078,2185.3,2184.8,3.8272]
[1741507188031,0.00686986,2185.4,2185.1,3.75705]
[1741507188229,0.00686986,2185.4,2185.2,1.8447]
[1741507189641,0.00686986,2185.4,2185.2,2.39393]
[1741507190027,0.00686986,2185.4,2185.2,1.8447]
[1741507194138,0.00686986,2185.4,2185.2,2.39393]
[1741507194327,0.00686986,2185.4,2185.2,1.8447]
[1741507195240,0.55606986,2185.4,2185.2,1.8447]
[1741507195437,1.16706986,2185.4,2185.2,1.8447]
[1741507195738,0.54922,2185.3,2185.2,0.6151]
[1741507198839,0.54922,2185.3,2185.2,1.2701]
[1741507199744,1.26466986,2185.4,2185.2,1.2701]
[1741507200241,0.54922,2185.3,2185.2,1.2701]
[1741507201739,1.81386986,2185.4,2185.2,1.2701]
[1741507203339,1.26466986,2185.4,2185.2,1.2701]
[1741507204444,1.81385986,2185.4,2185.2,1.2701]
[1741507204942,0.00686986,2185.4,2185.2,1.2701]
[1741507205137,0.55607986,2185.4,2185.2,1.2701]
[1741507205338,0.00686986,2185.4,2185.2,1.2701]
[1741507205639,1.17782,2185.3,2185.2,0.6151]
[1741507206438,1.17782,2185.3,2184.6,20.544]
[1741507206439,0.54937,2184.7,2184.6,20.544]
[1741507206640,0.54937,2184.7,2184.6,18.83536954]
[1741507207035,0.6526,2184.8,2184.6,18.83536954]
[1741507207246,0.6526,2184.8,2184.4,1.1987]
[1741507207439,0.6526,2184.8,2184.4,1.74814]
[1741507207745,0.6526,2184.8,2184.4,1.1987]
[1741507207945,0.6526,2184.8,2184.4,1.74814]
[1741507208144,0.6526,2184.8,2184.4,1.74813]
[1741507208750,0.6526,2184.8,2184.4,1.1987]
[1741507208948,1.20195,2184.8,2184.4,1.1987]
[1741507209549,0.54937,2184.7,2184.4,1.1987]
[1741507209747,0.54947,2184.3,2184.2,0.00686986]
[1741507211046,3.7572,2184.6,2184.2,0.00686986]
[1741507211448,3.7572,2184.6,2184.2,0.60366986]
[1741507211639,3.7572,2184.6,2184.3,0.6359]
[1741507212355,0.6526,2184.8,2184.3,1.18536]
[1741507212649,1.20195,2184.8,2184.4,0.6113]
[1741507213351,0.6526,2184.8,2184.4,0.6113]
[1741507213650,0.54938,2184.7,2184.3,0.6359]
[1741507215952,1.20195,2184.8,2184.3,1.18536]
[1741507216245,0.54937,2184.7,2184.3,0.6359]
[1741507216553,0.54937,2184.7,2184.3,1.18536]
[1741507216754,0.54937,2184.7,2184.3,0.6359]
[1741507217049,0.6526,2184.8,2184.3,0.6359]
[1741507217247,0.54937,2184.7,2184.3,1.18536]
[1741507217443,0.54937,2184.7,2184.3,0.6359]
[1741507217846,0.6526,2184.8,2184.4,0.54943]
[1741507218046,1.20195,2184.8,2184.3,1.18535]
[1741507219144,0.54937,2184.7,2184.4,3.2078]
[1741507219843,0.6526,2184.8,2184.4,3.2078]
[1741507220046,0.54937,2184.7,2184.4,3.2078]
[1741507220648,0.54941,2184.6,2184.4,3.2078]
[1741507220845,0.6526,2184.8,2184.4,3.2078]
[1741507221142,0.54937,2184.7,2184.4,3.2078]
[1741507222144,0.54937,2184.7,2184.3,2.5929]
[1741507223452,0.6526,2184.8,2184.3,2.5929]
[1741507223651,0.54939,2184.7,2184.3,2.5929]
[1741507223954,0.5494,2184.6,2184.3,2.5929]
[1741507225357,0.54944,2184.5,2184.3,0.6359]
[1741507225552,0.6526,2184.8,2184.3,0.6359]
[1741507225747,0.54944,2184.4,2184.3,0.6359]
[1741507226451,0.54943,2184.5,2184.3,0.6359]
[1741507226647,0.6526,2184.8,2184.3,0.6359]
[1741507226854,0.54944,2184.5,2184.3,0.6359]
[1741507230959,6.21898758,2185.1,2184.4,3.2078]
[1741507231159,6.21898758,2185.1,2184.5,1.956]
[1741507231364,6.76826758,2185.1,2184.6,1.17628]
[1741507231657,6.76826758,2185.1,2184.7,0.6228]
[1741507232057,6.21898758,2185.1,2184.7,0.6228]
[1741507232261,6.21898758,2185.1,2184.7,1.17217]
[1741507232958,6.76825758,2185.1,2184.7,0.6228]
[1741507233360,6.21898758,2185.1,2184.7,0.6228]
[1741507234160,6.21898758,2185.1,2184.7,1.17216]
[1741507235460,6.21898758,2185.1,2184.7,0.6228]
[1741507235857,6.21898758,2185.1,2184.8,0.54934]
[1741507236171,6.21898758,2185.1,2184.7,4.37995]
[1741507236359,6.21898758,2185.1,2184.8,0.54934]
[1741507236664,6.21898758,2185.1,2184.7,4.37996]
[1741507238365,6.21898758,2185.1,2184.8,0.54934]
[1741507238553,6.21898758,2185.1,2185.0,0.54929]
[1741507238755,6.21898758,2185.1,2184.9,0.5493]
[1741507238962,6.21898758,2185.1,2185.0,1.19979]
[1741507239162,6.21898758,2185.1,2185.0,0.6505]
[1741507239564,6.21898758,2185.1,2185.0,1.2841]
[1741507240972,6.21898758,2185.1,2184.8,1.955]
[1741507241170,6.21898758,2185.1,2184.8,2.5886]
[1741507241171,6.76826758,2185.1,2184.8,2.5886]
[1741507241373,6.83958758,2185.1,2184.8,2.5886]
[1741507242078,7.38886758,2185.1,2184.8,2.5886]
[1741507242486,7.38885758,2185.1,2184.8,2.5886]
[1741507243276,6.83958758,2185.1,2184.8,2.5886]
[1741507243989,7.38885758,2185.1,2184.8,2.5886]
[1741507244285,1.16987,2185.1,2184.8,2.5886]
[1741507244886,0.6206,2185.1,2184.8,2.5886]
[1741507248582,1.16988,2185.1,2184.8,2.5886]
[1741507252491,0.5493,2185.0,2184.8,2.5886]
[1741507252691,0.54933,2184.9,2184.7,0.6228]
[1741507252987,3.8065,2184.9,2184.5,1.955]
[1741507253187,0.54942,2184.5,2184.4,23.7548]
[1741507256392,0.54942,2184.5,2184.4,20.547]
[1741507256393,3.75722,2184.5,2184.4,20.547]
[1741507257799,3.2078,2184.5,2184.2,0.00686986]
[1741507257997,0.54947,2184.3,2184.2,0.00686986]
[1741507258593,1.79457,2184.3,2184.2,0.00686986]
[1741507269799,1.79457,2184.3,2183.8,3.8576]
[1741507269800,0.54957,2183.9,2183.8,3.8576]
[1741507270203,0.54957,2183.9,2183.8,3.2078]
[1741507271512,0.00686986,2184.1,2183.8,3.2078]
[1741507271704,0.54956,2184.0,2183.9,0.6305]
[1741507272607,1.956,2184.0,2183.6,0.00686986]
[1741507272802,3.75742,2183.7,2183.6,0.00686986]
[1741507274309,3.75742,2183.7,2183.6,0.60426986]
[1741507274811,0.54962,2183.7,2183.6,0.60426986]
[1741507275208,3.75742,2183.7,2183.6,0.60426986]
[1741507275412,3.75742,2183.7,2183.6,0.00686986]
[1741507282418,3.2078,2183.7,2183.3,0.642]
[1741507282615,0.54975,2183.2,2183.1,1.2742]
[1741507284214,0.5498,2183.0,2182.9,0.00686986]
[1741507286812,3.7576,2183.0,2182.9,0.00686986]
[1741507287012,0.5499,2182.6,2182.5,0.5975]
[1741507287219,0.54983,2182.9,2182.6,0.54988]
[1741507287420,0.54983,2182.9,2182.5,0.5975]
[1741507287421,3.2078,2183.0,2182.7,1.15417]
[1741507287723,3.75761,2183.0,2182.7,1.15417]
[1741507287920,5.1668,2183.3,2182.8,0.6506]
[1741507288119,0.00686986,2183.1,2182.9,0.5975]
[1741507288515,5.1698,2183.6,2182.9,7.8053]
[1741507288723,0.5497,2183.4,2183.1,0.54977]
[1741507288916,0.5497,2183.4,2182.9,5.7673]
[1741507288917,3.8624,2183.9,2183.2,0.6553]
[1741507289222,0.54963,2183.7,2183.3,0.54971]
[1741507289419,0.54964,2183.7,2183.4,0.6147]
[1741507289724,0.54962,2183.8,2183.4,1.16438]
[1741507289924,0.00686986,2183.8,2183.4,1.16438]
[1741507290229,0.54963,2183.7,2183.4,0.6147]
[1741507290618,0.00686986,2183.8,2183.4,0.6147]
[1741507290926,0.00686986,2183.8,2183.4,1.16438]
[1741507291122,0.54962,2183.7,2183.4,1.16438]
[1741507291828,0.54962,2183.7,2183.5,0.6097]
[1741507292024,0.00686986,2183.8,2183.5,0.6097]
[1741507292225,0.54962,2183.7,2183.5,0.6097]
[1741507294421,0.54965,2183.6,2183.5,0.6097]
[1741507296925,0.6286,2183.7,2183.4,0.6147]
[1741507297127,0.54967,2183.5,2183.4,0.6147]
[1741507298433,0.55646986,2183.8,2183.5,0.54965]
[1741507298732,0.00686986,2183.8,2183.7,0.54962]
[1741507298928,0.00686986,2183.8,2183.7,1.18942]
[1741507299135,0.54953,2184.1,2183.7,0.6398]
[1741507299325,0.54953,2184.1,2183.8,0.54959]
[1741507299732,0.54953,2184.1,2183.9,0.6258]
[1741507301032,3.76417986,2184.2,2183.9,0.6258]
[1741507301229,3.21466986,2184.2,2183.9,0.6258]
[1741507301537,0.00686986,2184.2,2183.9,1.17536]
[1741507301736,0.00686986,2184.2,2183.9,3.8336]
[1741507301925,0.00686986,2184.2,2184.0,0.54954]
[1741507302240,0.00686986,2184.2,2184.1,0.54952]
[1741507302431,0.00686986,2184.2,2184.1,1.17782]
[1741507302631,0.00686986,2184.2,2184.1,0.6283]
[1741507304540,0.00686986,2184.2,2184.1,1.17782]
[1741507305339,0.00686986,2184.2,2184.1,0.6283]
[1741507306738,0.55635986,2184.2,2184.1,0.6283]
[1741507307335,0.54953,2184.1,2183.9,3.8336]
[1741507307644,0.00686986,2184.2,2184.1,0.54952]
[1741507308938,0.00686986,2184.2,2184.0,0.54953]
[1741507310136,0.00686986,2184.2,2183.9,3.8336]
[1741507310642,0.00686986,2184.2,2184.1,0.54952]
[1741507314747,0.00686986,2184.2,2184.1,3.75732]
[1741507316949,3.2078,2184.7,2184.1,3.2078]
[1741507317247,0.54939,2184.6,2184.3,0.54946]
[1741507317448,0.54939,2184.6,2184.3,1.16106]